fUSD/lending_fUSD_20240319
["ID","MTS","AMOUNT","RATE_DAILY","PERIOD"]
[319573665,1710874246871,-29541.96,0.00032876,5]
[319573666,1710874246882,-500.0,0.00032876,5]
[319573667,1710874246892,-641.22,0.00032876,5]
[319573668,1710874246902,-500.0,0.00032876,5]
[319573669,1710874246913,-500.0,0.00032876,5]
[319573670,1710874246923,-500.0,0.00032876,5]
[319573671,1710874246933,-577.76,0.00032876,5]
[319573672,1710874246944,-797.25,0.00032876,5]
[319573673,1710874246954,-500.0,0.00032876,5]
[319573674,1710874246964,-1181.33,0.00032876,5]
[319573675,1710874246974,-500.0,0.00032876,5]
[319573676,1710874246983,-2744.21,0.00032876,5]
[319573677,1710874246993,-500.0,0.00032876,5]
[319573678,1710874247003,-500.0,0.00032876,5]
[319573679,1710874247013,-500.0,0.00032876,5]
[319573680,1710874247022,-4792.86,0.00032876,5]
[319573681,1710874247033,-500.0,0.00032876,5]
[319573682,1710874247043,-8667.25,0.00032876,5]
[319573683,1710874247052,-500.0,0.00032876,5]
[319573684,1710874247062,-500.0,0.00032876,5]
[319573685,1710874247071,-500.0,0.00032876,5]
[319573686,1710874247080,-500.0,0.00032876,5]
[319573687,1710874247090,-17544.7,0.00032876,5]
[319573688,1710874247099,-500.0,0.00032876,5]
[319573689,1710874247109,-15805.66,0.00032876,5]
[319573690,1710874247118,-500.0,0.00032876,5]
[319573691,1710874247128,-500.0,0.00032876,5]
[319573692,1710874247140,-500.0,0.00032876,5]
[319573693,1710874247150,-2704.05,0.00032876,5]
[319573694,1710874247159,-3120.69,0.00032876,5]
[319573695,1710874247168,-1844.43,0.00032876,5]
[319573696,1710874247178,-500.0,0.00032876,5]
[319573697,1710874247187,-1764.03,0.00032876,5]
[319573698,1710874247198,-500.0,0.00032876,5]
[319573699,1710874247207,-524.72,0.00032876,5]
[319573700,1710874247216,-2852.87,0.00032876,5]
[319573701,1710874247225,-13672.12,0.00032876,5]
[319573702,1710874247234,-943.09,0.00032876,5]
[319573703,1710874247243,-500.0,0.00032876,5]
[319573704,1710874247252,-500.0,0.00032876,5]
[319573705,1710874247262,-500.0,0.00032876,5]
[319573706,1710874247271,-1199.87,0.00032876,5]
[319573707,1710874247280,-500.0,0.00032876,5]
[319573708,1710874247289,-500.0,0.00032876,5]
[319573709,1710874247299,-9563.52,0.00032876,5]
[319573710,1710874247308,-500.0,0.00032876,5]
[319573711,1710874247317,-500.0,0.00032876,5]
[319573712,1710874247326,-500.0,0.00032876,5]
[319573713,1710874247336,-3468.5,0.00032876,5]
[319573714,1710874247345,-500.0,0.00032876,5]
[319573715,1710874247354,-793.26,0.00032876,5]
[319573716,1710874247363,-500.0,0.00032876,5]
[319573717,1710874247375,-26370.78,0.00032876,5]
[319573718,1710874247385,-5987.17,0.00032876,5]
[319573719,1710874247394,-2885.37,0.00032876,5]
[319573720,1710874247403,-500.0,0.00032876,5]
[319573721,1710874247413,-6296.1,0.00032876,5]
[319573722,1710874247424,-500.0,0.00032876,5]
[319573723,1710874247433,-766.62,0.00032876,5]
[319573724,1710874247443,-500.0,0.00032876,5]
[319573725,1710874247454,-659.85,0.00032876,5]
[319573726,1710874247464,-500.71678584,0.00032876,5]
[319573727,1710874247473,-604.41,0.00032876,5]
[319573728,1710874247483,-529.56,0.00032876,5]
[319573729,1710874247493,-500.0,0.00032876,5]
[319573730,1710874247503,-500.0,0.00032876,5]
[319573731,1710874247512,-500.0,0.00032876,5]
[319573732,1710874247522,-500.0,0.00032876,5]
[319573733,1710874247531,-3625.13,0.00032876,5]
[319573734,1710874247541,-3569.9,0.00032876,5]
[319573735,1710874247550,-500.0,0.00032876,5]
[319573736,1710874247560,-5387.28,0.00032876,5]
[319573737,1710874247570,-500.0,0.00032876,2]
[319573738,1710874247579,-500.0,0.00032876,5]
[319573739,1710874247589,-598.97,0.00032876,5]
[319573740,1710874247598,-1047.93,0.00032876,5]
[319573741,1710874247607,-500.0,0.00032876,5]
[319573742,1710874247616,-500.0,0.00032876,5]
[319573743,1710874247625,-1681.68,0.00032876,5]
[319573744,1710874247635,-1394.77,0.00032876,5]
[319573745,1710874247645,-500.0,0.00032876,5]
[319573746,1710874247654,-500.0,0.00032876,5]
[319573747,1710874247664,-501.07459015,0.00032876,5]
[319573748,1710874247673,-500.0,0.00032876,5]
[319573749,1710874247683,-1091.34,0.00032876,5]
[319573750,1710874247693,-500.0,0.00032876,5]
[319573751,1710874247702,-539.06,0.00032876,5]
[319573752,1710874247712,-623.99,0.00032876,5]
[319573753,1710874247721,-6131.47,0.00032876,5]
[319573754,1710874247730,-500.0,0.00032876,5]
[319573755,1710874247740,-500.0,0.00032876,5]
[319573756,1710874247749,-6063.89,0.00032876,5]
[319573757,1710874247759,-531.71,0.00032876,5]
[319573758,1710874247768,-500.0,0.00032876,5]
[319573759,1710874247778,-370.50552047,0.00032876,5]
[319573760,1710874247788,-932.9,0.00032876,5]
[319573761,1710874247797,-496.90940511,0.00032876,5]
[319573762,1710874247807,-500.0,0.00032876,5]
[319573763,1710874247816,-500.0,0.00032876,5]
[319573764,1710874247826,-506.25882224,0.00032876,5]
[319573765,1710874247835,-500.0,0.00032876,5]
[319573766,1710874247845,-1161.57,0.00032876,5]
[319573767,1710874247855,-575.1,0.00032876,5]
[319573768,1710874247864,-500.0,0.00032876,5]
[319573769,1710874247874,-500.0,0.00032876,5]
[319573770,1710874247884,-1593.92,0.00032876,5]
[319573771,1710874247894,-500.0,0.00032876,5]
[319573772,1710874247904,-1895.38,0.00032876,5]
[319573773,1710874247913,-568.19,0.00032876,5]
[319573774,1710874247922,-500.0,0.00032876,5]
[319573775,1710874247931,-500.0,0.00032876,5]
[319573776,1710874247941,-500.0,0.00032876,5]
[319573777,1710874247951,-3774.2,0.00032876,5]
[319573778,1710874247960,-500.0,0.00032876,5]
[319573779,1710874247969,-500.0,0.00032876,5]
[319573780,1710874247979,-500.0,0.00032876,5]
[319573781,1710874247988,-500.0,0.00032876,5]
[319573782,1710874247998,-500.0,0.00032876,5]
[319573783,1710874248007,-6270.72,0.00032876,5]
[319573784,1710874248017,-500.0,0.00032876,5]
[319573785,1710874248027,-500.0,0.00032876,5]
[319573786,1710874248036,-500.0,0.00032876,5]
[319573787,1710874248045,-500.0,0.00032876,5]
[319573788,1710874248055,-5094.66,0.00032876,5]
[319573789,1710874248064,-871.67,0.00032876,5]
[319573790,1710874248073,-4718.53,0.00032876,5]
[319573791,1710874248083,-421.39401429,0.00032876,5]
[319573792,1710874248092,-82956.54,0.00032876,5]
[319573793,1710874248102,-500.0,0.00032876,5]
[319573794,1710874248111,-5217.19,0.00032876,5]
[319573795,1710874248121,-504.26710859,0.00032876,5]
[319573796,1710874248132,-540.2,0.00032876,5]
[319573797,1710874248141,-1414.36,0.00032876,5]
[319573798,1710874248150,-500.0,0.00032876,5]
[319573799,1710874248159,-7249.66,0.00032876,5]
[319573800,1710874248169,-523.97687262,0.00032876,5]
[319573801,1710874248179,-636.59,0.00032876,5]
[319573802,1710874248188,-500.0,0.00032876,5]
[319573803,1710874248198,-500.0,0.00032876,5]
[319573804,1710874248207,-5014.92,0.00032876,5]
[319573805,1710874248216,-508.05703869,0.00032876,5]
[319573806,1710874248226,-500.0,0.00032876,5]
[319573807,1710874248235,-500.0,0.00032876,5]
[319573808,1710874248245,-693.43,0.00032876,5]
[319573809,1710874248255,-5492.95,0.00032876,5]
[319573810,1710874248264,-500.0,0.00032876,5]
[319573811,1710874248273,-5507.51,0.00032876,5]
[319573812,1710874248283,-1189.38,0.00032876,5]
[319573813,1710874248292,-2708.71,0.00032876,5]
[319573814,1710874248301,-1523.12,0.00032876,5]
[319573815,1710874248311,-500.0,0.00032876,5]
[319573816,1710874248321,-828.39,0.00032876,5]
[319573817,1710874248330,-1968.36,0.00032876,5]
[319573818,1710874248340,-500.0,0.00032876,5]
[319573819,1710874248350,-483.52299211,0.00032876,5]
[319573820,1710874248360,-500.0,0.00032876,5]
[319573821,1710874248372,-340.95124945,0.00032876,5]
[319573822,1710874248383,-9179.41,0.00032876,5]
[319573823,1710874248392,-3919.96,0.00032876,5]
[319573824,1710874248402,-5231.47,0.00032876,5]
[319573825,1710874248412,-395.71133684,0.00032876,5]
[319573826,1710874248421,-8671.13,0.00032876,5]
[319573827,1710874248430,-500.0,0.00032876,5]
[319573828,1710874248440,-500.0,0.00032876,5]
[319573829,1710874248451,-3513.54,0.00032876,5]
[319573830,1710874248460,-857.93,0.00032876,5]
[319573831,1710874248470,-4453.83,0.00032876,5]
[319573832,1710874248479,-500.0,0.00032876,5]
[319573833,1710874248488,-6944.79,0.00032876,5]
[319573834,1710874248497,-500.0,0.00032876,5]
[319573835,1710874248507,-500.0,0.00032876,5]
[319573836,1710874248516,-500.0,0.00032876,5]
[319573837,1710874248526,-500.0,0.00032876,5]
[319573838,1710874248535,-4869.03,0.00032876,5]
[319573839,1710874248544,-845.64,0.00032876,5]
[319573840,1710874248554,-9522.12,0.00032876,5]
[319573841,1710874248563,-1760.83,0.00032876,5]
[319573842,1710874248573,-500.0,0.00032876,5]
[319573843,1710874248582,-3967.73,0.00032876,5]
[319573844,1710874248592,-500.0,0.00032876,5]
[319573845,1710874248601,-510.49,0.00032876,5]
[319573846,1710874248611,-500.0,0.00032876,5]
[319573847,1710874248621,-500.0,0.00032876,5]
[319573848,1710874248630,-500.0,0.00032876,5]
[319573849,1710874248639,-3090.76,0.00032876,5]
[319573850,1710874248648,-809.66,0.00032876,5]
[319573851,1710874248658,-9885.78,0.00032876,5]
[319573852,1710874248667,-500.0,0.00032876,5]
[319573853,1710874248677,-25040.51,0.00032876,5]
[319573854,1710874248687,-500.0,0.00032876,5]
[319573855,1710874248696,-500.0,0.00032876,5]
[319573856,1710874248705,-609.71,0.00032876,5]
[319573857,1710874248714,-11881.73,0.00032876,5]
[319573858,1710874248724,-4594.9,0.00032876,5]
[319573859,1710874248734,-4206.29,0.00032876,5]
[319573860,1710874248743,-500.0,0.00032876,5]
[319573861,1710874248752,-8030.37,0.00032876,5]
[319573862,1710874248761,-500.0,0.00032876,5]
[319573863,1710874248771,-1352.78,0.00032876,5]
[319573864,1710874248780,-500.0,0.00032876,5]
[319573865,1710874248790,-500.0,0.00032876,5]
[319573866,1710874248800,-500.0,0.00032876,5]
[319573867,1710874248809,-500.0,0.00032876,5]
[319573868,1710874248818,-500.0,0.00032876,5]
[319573869,1710874248828,-10195.4,0.00032876,5]
[319573870,1710874248838,-1692.42,0.00032876,5]
[319573871,1710874248848,-4101.98,0.00032876,5]
[319573872,1710874248857,-641.68,0.00032876,5]
[319573873,1710874248866,-14324.16,0.00032876,5]
[319573874,1710874248876,-500.0,0.00032876,5]
[319573875,1710874248887,-2435.56,0.00032876,5]
[319573876,1710874248897,-4314.77,0.00032876,5]
[319573877,1710874248907,-500.0,0.00032876,5]
[319573878,1710874248916,-500.0,0.00032876,5]
[319573879,1710874248926,-1210.83,0.00032876,5]
[319573880,1710874248935,-3068.37,0.00032876,5]
[319573881,1710874248944,-714.99,0.00032876,5]
[319573882,1710874248954,-576.48,0.00032876,5]
[319573883,1710874248963,-889.13,0.00032876,5]
[319573884,1710874248973,-5419.93,0.00032876,5]
[319573885,1710874248982,-698.19,0.00032876,5]
[319573886,1710874248991,-500.0,0.00032876,5]
[319573887,1710874249001,-500.0,0.00032876,5]
[319573888,1710874249010,-12833.39,0.00032876,5]
[319573889,1710874249020,-500.0,0.00032876,5]
[319573890,1710874249030,-500.0,0.00032876,5]
[319573891,1710874249039,-877.66,0.00032876,5]
[319573892,1710874249049,-500.0,0.00032876,5]
[319573893,1710874249058,-957.62,0.00032876,5]
[319573894,1710874249068,-1803.28,0.00032876,5]
[319573895,1710874249078,-500.0,0.00032876,5]
[319573896,1710874249087,-11909.68,0.00032876,5]
[319573897,1710874249097,-1399.42,0.00032876,5]
[319573898,1710874249106,-1436.79,0.00032876,5]
[319573899,1710874249116,-769.55,0.00032876,5]
[319573900,1710874249125,-240.66807739,0.00032876,5]
[319573901,1710874249136,-500.0,0.00032876,5]
[319573902,1710874249146,-650.2,0.00032876,5]
[319573903,1710874249156,-1284.31,0.00032876,5]
[319573904,1710874249165,-1393.07,0.00032876,5]
[319573905,1710874249174,-500.0,0.00032876,5]
[319573906,1710874249184,-174.25120363,0.00032876,5]
[319573907,1710874249194,-500.0,0.00032876,5]
[319573908,1710874249204,-9855.04,0.00032876,5]
[319573909,1710874249213,-6092.83,0.00032876,5]
[319573910,1710874249222,-500.0,0.00032876,5]
[319573911,1710874249231,-2501.15,0.00032876,5]
[319573912,1710874249240,-996.67,0.00032876,5]
[319573913,1710874249250,-500.0,0.00032876,5]
[319573914,1710874249259,-7045.0,0.00032876,5]
[319573915,1710874249268,-812.94,0.00032876,5]
[319573916,1710874249278,-500.0,0.00032876,5]
[319573917,1710874249287,-1291.1,0.00032876,5]
[319573918,1710874249296,-500.0,0.00032876,5]
[319573919,1710874249306,-859.3,0.00032876,5]
[319573920,1710874249315,-1487.61,0.00032876,5]
[319573921,1710874249324,-19068.29,0.00032876,5]
[319573922,1710874249333,-500.0,0.00032876,5]
[319573923,1710874249343,-500.0,0.00032876,5]
[319573924,1710874249352,-500.0,0.00032876,5]
[319573925,1710874249362,-550.06242519,0.00032876,5]
[319573926,1710874249372,-7324.22,0.00032876,5]
[319573927,1710874249383,-500.0,0.00032876,5]
[319573928,1710874249392,-500.0,0.00032876,5]
[319573929,1710874249402,-3044.99,0.00032876,5]
[319573930,1710874249412,-1119.48,0.00032876,5]
[319573931,1710874249421,-9830.8212025,0.00032876,5]
[319573932,1710874250091,-142.1887975,0.00032876,5]
[319573933,1710874250102,-500.0,0.00032876,5]
[319573934,1710874250113,-500.0,0.00032876,5]
[319573935,1710874250124,-9516.03,0.00032876,5]
[319573936,1710874250138,-500.0,0.00032876,5]
[319573937,1710874250149,-500.0,0.00032876,5]
[319573938,1710874250159,-500.0,0.00032876,5]
[319573939,1710874250169,-736.23,0.00032876,5]
[319573940,1710874250180,-500.0,0.00032876,5]
[319573941,1710874250191,-500.0,0.00032876,2]
[319573942,1710874250201,-3839.12,0.00032876,5]
[319573943,1710874250211,-1328.02,0.00032876,5]
[319573944,1710874250221,-500.0,0.00032876,5]
[319573945,1710874250231,-1444.75486454,0.00032876,5]
[319573946,1710874250256,-399.37201755,0.00032876,5]
[319573947,1710874250276,-51555.36311791,0.00032876,5]
[319573948,1710874250285,-500.0,0.00032876,5]
[319573949,1710874250295,-599.87,0.00032876,5]
[319573950,1710874250305,-926.68,0.00032876,5]
[319573951,1710874250314,-365.70652412,0.00032876,5]
[319573952,1710874251005,-151.14,0.00031436,120]
[319573953,1710874251016,-3480.04347588,0.00032876,5]
[319573954,1710874251026,-1003.9,0.00032876,5]
[319573955,1710874251037,-500.0,0.00032876,5]
[319573956,1710874251047,-501.44,0.00032876,5]
[319573957,1710874251057,-1156.64,0.00032876,5]
[319573958,1710874251067,-500.0,0.00032876,5]
[319573959,1710874251077,-322.31483852,0.00032876,5]
[319573960,1710874251223,-709.01516148,0.00032876,5]
[319573961,1710874251234,-539.52,0.00032876,5]
[319573962,1710874251243,-101.88403852,0.00032876,5]
[319573963,1710874251255,-398.11596148,0.00032876,5]
[319573964,1710874251265,-268.27346067,0.00032876,5]
[319573965,1710874251277,-231.72653933,0.00032876,5]
[319573966,1710874251287,-4696.91193896,0.00032876,5]
[319573967,1710874251298,-340.20770521,0.00032876,5]
[319573968,1710874251310,-1103.0379168,0.00032876,5]
[319573969,1710874251362,-639.11620009,0.00032876,5]
[319573970,1710874251397,-972.48623894,0.00032876,5]
[319573971,1710874251407,-68.66151,0.00032876,5]
[319573972,1710874251548,-431.33849,0.00032876,5]
[319573973,1710874251558,-14019.43,0.00032876,5]
[319573974,1710874251568,-722.03,0.00032876,5]
[319573975,1710874251578,-500.0,0.00032876,5]
[319573976,1710874251588,-12550.99,0.00032876,5]
[319573977,1710874251598,-651.7,0.00032876,5]
[319573978,1710874251608,-819.28,0.00032876,5]
[319573979,1710874251619,-500.0,0.00032876,5]
[319573980,1710874251629,-500.0,0.00032876,5]
[319573981,1710874251644,-500.0,0.00032876,5]
[319573982,1710874251654,-737.1,0.00032876,5]
[319573983,1710874251664,-190.69908775,0.00032876,5]
[319573984,1710874251677,-3470.13415581,0.00032876,5]
[319573985,1710874252362,-610.78231155,0.00032876,5]
[319573986,1710874252377,-2593.14961427,0.00032876,5]
[319573987,1710874252391,-3218.06022384,0.00032876,5]
[319573988,1710874252419,-1347.46460678,0.00032876,5]
[319573989,1710874252429,-500.0,0.00032876,5]
[319573990,1710874252438,-1850.81,0.00032876,5]
[319573991,1710874252448,-1372.05,0.00032876,5]
[319573992,1710874252458,-207.45140815,0.00032876,5]
[319573993,1710874252468,-500.0,0.00032876,5]
[319573994,1710874252477,-503.97,0.00032876,5]
[319573995,1710874252486,-500.0,0.00032876,5]
[319573996,1710874252495,-8347.5425925,0.00032876,5]
[319573997,1710874252569,-1214.98557239,0.00032876,5]
[319573998,1710874252581,-414.8262517,0.00032876,5]
[319573999,1710874252666,-6782.56558341,0.00032876,5]
[319574000,1710874252676,-36144.28,0.00032876,5]
[319574001,1710874252686,-1603.8,0.00032876,5]
[319574002,1710874252695,-4782.51,0.00032876,5]
[319574003,1710874252704,-500.0,0.00032876,5]
[319574004,1710874252713,-515.02,0.00032876,5]
[319574005,1710874252722,-1340.68,0.00032876,5]
[319574006,1710874252731,-500.0,0.00032876,5]
[319574007,1710874252741,-1307.28,0.00032876,5]
[319574008,1710874252750,-500.0,0.00032876,5]
[319574009,1710874252759,-6487.73,0.00032876,5]
[319574010,1710874252769,-500.0,0.00032876,5]
[319574011,1710874252778,-500.0,0.00032876,5]
[319574012,1710874252788,-25723.04,0.00032876,5]
[319574013,1710874252798,-25723.04,0.00032876,5]
[319574014,1710874252808,-500.0,0.00032876,5]
[319574015,1710874252818,-25723.04,0.00032876,5]
[319574016,1710874252827,-25723.04,0.00032876,5]
[319574017,1710874252837,-4053.95,0.00032876,5]
[319574018,1710874252847,-851.17,0.00032876,5]
[319574019,1710874252856,-2228.9,0.00032876,5]
[319574020,1710874252866,-500.0,0.00032876,5]
[319574021,1710874252875,-500.0,0.00032876,5]
[319574022,1710874252885,-2738.7,0.00032876,5]
[319574023,1710874252894,-670.8,0.00032876,5]
[319574024,1710874252903,-596.01,0.00032876,5]
[319574025,1710874252913,-500.0,0.00032876,5]
[319574026,1710874252922,-1516.31,0.00032876,5]
[319574027,1710874252931,-500.0,0.00032876,5]
[319574028,1710874252941,-8924.14,0.00032876,5]
[319574029,1710874252950,-500.0,0.00032876,5]
[319574030,1710874252960,-500.0,0.00032876,5]
[319574031,1710874252969,-3718.56,0.00032876,5]
[319574032,1710874252979,-755.73,0.00032876,5]
[319574033,1710874252989,-500.0,0.00032876,5]
[319574034,1710874252999,-500.0,0.00032876,5]
[319574035,1710874253008,-5024.36,0.00032876,5]
[319574036,1710874253018,-18775.74,0.00032876,5]
[319574037,1710874253027,-669.17,0.00032876,5]
[319574038,1710874253037,-500.0,0.00032876,5]
[319574039,1710874253047,-864.96,0.00032876,5]
[319574040,1710874253056,-500.0,0.00032876,5]
[319574041,1710874253065,-500.0,0.00032876,5]
[319574042,1710874253074,-500.0,0.00032876,5]
[319574043,1710874253085,-1225.45,0.00032876,5]
[319574044,1710874253095,-5834.48,0.00032876,5]
[319574045,1710874253104,-500.0,0.00032876,5]
[319574046,1710874253114,-1273.41,0.00032876,5]
[319574047,1710874253123,-10556.73,0.00032876,5]
[319574048,1710874253133,-500.0,0.00032876,5]
[319574049,1710874253143,-500.0,0.00032876,5]
[319574050,1710874253152,-2484.93,0.00032876,5]
[319574051,1710874253161,-14497.31,0.00032876,5]
[319574052,1710874253171,-500.0,0.00032876,5]
[319574053,1710874253180,-610.69,0.00032876,5]
[319574054,1710874253190,-500.0,0.00032876,5]
[319574055,1710874253199,-10679.34,0.00032876,5]
[319574056,1710874253209,-500.0,0.00032876,5]
[319574057,1710874253218,-500.0,0.00032876,5]
[319574058,1710874253228,-1296.37,0.00032876,5]
[319574059,1710874253238,-254.29621222,0.00032876,5]
[319574060,1710874253247,-8172.26,0.00032876,5]
[319574061,1710874253257,-500.0,0.00032876,5]
[319574062,1710874253266,-500.0,0.00032876,5]
[319574063,1710874253276,-648.6,0.00032876,5]
[319574064,1710874253287,-500.0,0.00032876,5]
[319574065,1710874253296,-887.49,0.00032876,5]
[319574066,1710874253306,-668.85,0.00032876,5]
[319574067,1710874253315,-500.0,0.00032876,5]
[319574068,1710874253325,-35667.41,0.00032876,5]
[319574069,1710874253334,-640.9,0.00032876,5]
[319574070,1710874253343,-2798.76,0.00032876,5]
[319574071,1710874253353,-500.0,0.00032876,5]
[319574072,1710874253363,-542.97,0.00032876,5]
[319574073,1710874253374,-2014.3,0.00032876,5]
[319574074,1710874253384,-1183.22,0.00032876,5]
[319574075,1710874253396,-16775.32,0.00032876,5]
[319574076,1710874253407,-500.28333801,0.00032876,5]
[319574077,1710874253416,-5522.95,0.00032876,5]
[319574078,1710874253427,-1244.04,0.00032876,5]
[319574079,1710874253436,-2051.19,0.00032876,5]
[319574080,1710874253445,-5847.76,0.00032876,5]
[319574081,1710874253456,-3329.16,0.00032876,5]
[319574082,1710874253466,-500.0,0.00032876,5]
[319574083,1710874253475,-500.0,0.00032876,5]
[319574084,1710874253485,-500.0,0.00032876,5]
[319574085,1710874253494,-682.83,0.00032876,5]
[319574086,1710874253504,-500.0,0.00032876,5]
[319574087,1710874253514,-500.0,0.00032876,5]
[319574088,1710874253523,-500.0,0.00032876,5]
[319574089,1710874253534,-500.0,0.00032876,5]
[319574090,1710874253543,-500.0,0.00032876,5]
[319574091,1710874253553,-500.0,0.00032876,5]
[319574092,1710874253563,-1135.89,0.00032876,5]
[319574093,1710874253572,-2754.9,0.00032876,5]
[319574094,1710874253582,-638.88,0.00032876,5]
[319574095,1710874253592,-500.0,0.00032876,5]
[319574096,1710874253601,-866.5,0.00032876,5]
[319574097,1710874253611,-500.0,0.00032876,5]
[319574098,1710874253621,-500.0,0.00032876,5]
[319574099,1710874253630,-6737.41,0.00032876,5]
[319574100,1710874253641,-670.44,0.00032876,5]
[319574101,1710874253651,-5670.31,0.00032876,5]
[319574102,1710874253659,-5623.96,0.00032876,5]
[319574103,1710874253669,-500.0,0.00032876,5]
[319574104,1710874253678,-500.0,0.00032876,5]
[319574105,1710874253687,-500.0,0.00032876,5]
[319574106,1710874253696,-19498.9,0.00032876,5]
[319574107,1710874253705,-7939.92,0.00032876,5]
[319574108,1710874253714,-500.0,0.00032876,5]
[319574109,1710874253723,-500.0,0.00032876,5]
[319574110,1710874253733,-952.89,0.00032876,5]
[319574111,1710874253742,-500.0,0.00032876,5]
[319574112,1710874253752,-500.0,0.00032876,5]
[319574113,1710874253761,-5321.02,0.00032876,5]
[319574114,1710874253770,-3077.73,0.00032876,5]
[319574115,1710874253780,-721.54,0.00032876,5]
[319574116,1710874253789,-500.0,0.00032876,5]
[319574117,1710874253798,-500.0,0.00032876,5]
[319574118,1710874253808,-2087.85,0.00032876,5]
[319574119,1710874253817,-31248.0,0.00032876,5]
[319574120,1710874253827,-4352.03,0.00032876,5]
[319574121,1710874253837,-157.29,0.00032876,5]
[319574122,1710874253846,-500.0,0.00032876,5]
[319574123,1710874253856,-1312.26,0.00032876,5]
[319574124,1710874253865,-772.49,0.00032876,5]
[319574125,1710874253875,-500.0,0.00032876,5]
[319574126,1710874253884,-515.82,0.00032876,5]
[319574127,1710874253894,-500.0,0.00032876,5]
[319574128,1710874253903,-500.0,0.00032876,5]
[319574129,1710874253913,-500.0,0.00032876,5]
[319574130,1710874253922,-4045.59,0.00032876,5]
[319574131,1710874253931,-500.0,0.00032876,5]
[319574132,1710874253941,-500.0,0.00032876,5]
[319574133,1710874253952,-20426.0,0.00032877,4]
[319574134,1710874253961,-3974.0,0.00032877,4]
[319574135,1710874253972,-500.0,0.00033,2]
[319574136,1710874253981,-152.82416009,0.00033125,2]
[319574137,1710874253991,-4860.94182052,0.00033145,5]
[319574138,1710874254000,-300.0,0.00033149,10]
[319574139,1710874254010,-300.0,0.00033149,10]
[319574140,1710874254019,-300.0,0.00033149,10]
[319574141,1710874254028,-25723.04,0.00033149,5]
[319574142,1710874254038,-25723.04,0.00033149,5]
[319574143,1710874254048,-150.0,0.00033149,2]
[319574144,1710874254057,-150.0,0.00033149,2]
[319574145,1710874254067,-1096805.60635151,0.0003315,10]
[319574146,1710874255088,-263.33634758,0.00031435,4]
[319574147,1710874255098,-206.27589587,0.00031435,4]
[319574148,1710874255107,-129.66754863,0.00031435,4]
[319574149,1710874255131,-152.60380641,0.00031435,4]
[319574150,1710874255142,-561.89303341,0.00032875,4]
[319574151,1710874255152,-1788.2437672,0.00032875,4]
[319574152,1710874255161,-243.99873144,0.00032875,4]
[319574153,1710874255171,-2530.69815409,0.00032875,2]
[319574154,1710874255180,-1987.76250745,0.00032875,4]
[319574171,1710874436581,5700.0,0.00014,2]
[319574172,1710874436605,5700.0,0.00014,2]
[319574173,1710874436628,5700.0,0.00014,2]
[319574174,1710874436652,5700.0,0.00014,2]
[319574175,1710874436675,5700.0,0.00014,2]
[319574176,1710874436699,17886.28360788,0.00014,2]
[319574177,1710874436721,18200.0,0.00014,2]
[319574178,1710874436745,18200.0,0.00014,2]
[319574179,1710874436771,19300.0,0.00014,2]
[319574182,1710874467112,746.15813072,0.00012598,2]